[Event "Titled Tuesday Blitz October 25 Late 2022"]
[White "Li, Ben"]
[Black "Garagulya, Konstantin"]
[WhiteFideId "2089980"]
[BlackFideId "4128931"]
[WhiteElo "2267"]
[BlackElo "2329"]
[Result "1-0"]
[Round "01"]
[TimeControl "180+1"]
[Date "2022.10.26"]
[WhiteClock "0:00:24"]
[BlackClock "0:00:04"]

1. d4 {[%clk 0:03:00]}  d5 {[%clk 0:02:49]} 2. Nf3 {[%clk 0:02:59]}  Nf6 {[%clk 0:02:48]} 3. c4 {[%clk 0:03:00]}  dxc4 {[%clk 0:02:48]} 4. Nc3 {[%clk 0:02:59]}  a6 {[%clk 0:02:47]} 5. e4 {[%clk 0:02:59]}  b5 {[%clk 0:02:47]} 6. e5 {[%clk 0:02:59]}  Nd5 {[%clk 0:02:47]} 7. a4 {[%clk 0:02:59]}  Nxc3 {[%clk 0:02:44]} 8. bxc3 {[%clk 0:03:00]}  Bb7 {[%clk 0:02:43]} 9. e6 {[%clk 0:02:58]}  fxe6 {[%clk 0:02:31]} 10. Ng5 {[%clk 0:02:56]}  Qd5 {[%clk 0:02:08]} 11. Qg4 {[%clk 0:02:29]}  Qf5 {[%clk 0:01:57]} 12. Qxf5 {[%clk 0:01:46]}  exf5 {[%clk 0:01:57]} 13. Ne6 {[%clk 0:01:47]}  Kd7 {[%clk 0:01:41]} 14. Nc5+ {[%clk 0:01:47]}  Kc8 {[%clk 0:01:42]} 15. Nxb7 {[%clk 0:01:47]}  Kxb7 {[%clk 0:01:42]} 16. Rb1 {[%clk 0:01:48]}  c6 {[%clk 0:01:06]} 17. Bxc4 {[%clk 0:01:46]}  Ka7 {[%clk 0:00:31]} 18. Be6 {[%clk 0:01:39]}  g6 {[%clk 0:00:31]} 19. Be3 {[%clk 0:01:35]}  Bg7 {[%clk 0:00:31]} 20. Ke2 {[%clk 0:01:17]}  Rd8 {[%clk 0:00:31]} 21. Rhd1 {[%clk 0:01:12]}  Rd6 {[%clk 0:00:30]} 22. d5+ {[%clk 0:01:02]}  Kb7 {[%clk 0:00:30]} 23. c4 {[%clk 0:01:00]}  Nd7 {[%clk 0:00:16]} 24. dxc6+ {[%clk 0:00:45]}  Kxc6 {[%clk 0:00:16]} 25. cxb5+ {[%clk 0:00:44]}  axb5 {[%clk 0:00:16]} 26. Rbc1+ {[%clk 0:00:32]}  Kb7 {[%clk 0:00:10]} 27. Rxd6 {[%clk 0:00:30]}  exd6 {[%clk 0:00:10]} 28. Bxd7 {[%clk 0:00:29]}  Rxa4 {[%clk 0:00:10]} 29. Bxb5 {[%clk 0:00:28]}  Ra2+ {[%clk 0:00:11]} 30. Kf3 {[%clk 0:00:27]}  Be5 {[%clk 0:00:09]} 31. g3 {[%clk 0:00:27]}  h5 {[%clk 0:00:06]} 32. h4 {[%clk 0:00:26]}  Rb2 {[%clk 0:00:05]} 33. Bc6+ {[%clk 0:00:25]}  Kb8 {[%clk 0:00:04]} 34. Be8 {[%clk 0:00:24]} 1-0


[Site "https://www.chess.com"]

[Event "Titled Tuesday Blitz October 25 Late 2022"]
[White "Lorenzo De La Riva, Lazaro"]
[Black "Badmatsyrenov, Oleg"]
[WhiteFideId "2268809"]
[BlackFideId "24115762"]
[WhiteElo "2325"]
[BlackElo "2403"]
[Result "0-1"]
[Round "01"]
[TimeControl "180+1"]
[Date "2022.10.26"]
[WhiteClock "0:00:01"]
[BlackClock "0:00:20"]

1. e4 {[%clk 0:02:58]}  c5 {[%clk 0:02:59]} 2. Nf3 {[%clk 0:02:57]}  e6 {[%clk 0:02:59]} 3. g3 {[%clk 0:02:56]}  Nc6 {[%clk 0:02:59]} 4. Bg2 {[%clk 0:02:56]}  Nge7 {[%clk 0:02:59]} 5. O-O {[%clk 0:02:54]}  d6 {[%clk 0:02:57]} 6. c3 {[%clk 0:02:49]}  g6 {[%clk 0:02:56]} 7. d4 {[%clk 0:02:48]}  cxd4 {[%clk 0:02:57]} 8. cxd4 {[%clk 0:02:47]}  Bg7 {[%clk 0:02:56]} 9. Nc3 {[%clk 0:02:47]}  O-O {[%clk 0:02:56]} 10. Be3 {[%clk 0:02:46]}  a6 {[%clk 0:02:55]} 11. Qd2 {[%clk 0:02:44]}  Re8 {[%clk 0:02:53]} 12. Bh6 {[%clk 0:02:42]}  Bh8 {[%clk 0:02:53]} 13. Rfd1 {[%clk 0:02:35]}  b5 {[%clk 0:02:50]} 14. Rac1 {[%clk 0:02:31]}  Bb7 {[%clk 0:02:45]} 15. h4 {[%clk 0:02:17]}  Rc8 {[%clk 0:02:41]} 16. b3 {[%clk 0:02:15]}  Qa5 {[%clk 0:02:14]} 17. h5 {[%clk 0:02:08]}  b4 {[%clk 0:02:13]} 18. hxg6 {[%clk 0:02:00]}  bxc3 {[%clk 0:01:50]} 19. gxf7+ {[%clk 0:01:58]}  Kxf7 {[%clk 0:01:51]} 20. Rxc3 {[%clk 0:01:54]}  Ng6 {[%clk 0:01:30]} 21. Ng5+ {[%clk 0:01:49]}  Kg8 {[%clk 0:01:30]} 22. Bh3 {[%clk 0:01:39]}  Nd8 {[%clk 0:01:11]} 23. Rdc1 {[%clk 0:01:19]}  Rxc3 {[%clk 0:01:10]} 24. Rxc3 {[%clk 0:01:20]}  Qb6 {[%clk 0:00:54]} 25. Rd3 {[%clk 0:01:14]}  Bf6 {[%clk 0:00:45]} 26. Kh2 {[%clk 0:01:02]}  Nf7 {[%clk 0:00:43]} 27. Bxe6 {[%clk 0:00:49]}  Rxe6 {[%clk 0:00:40]} 28. Nxe6 {[%clk 0:00:48]}  Bxe4 {[%clk 0:00:40]} 29. Rc3 {[%clk 0:00:45]}  Bb7 {[%clk 0:00:23]} 30. Rc7 {[%clk 0:00:39]}  Qb5 {[%clk 0:00:23]} 31. Kg1 {[%clk 0:00:16]}  Qd5 {[%clk 0:00:23]} 32. Rxb7 {[%clk 0:00:15]}  Qxb7 {[%clk 0:00:23]} 33. Qc3 {[%clk 0:00:15]}  Qd7 {[%clk 0:00:22]} 34. Qe3 {[%clk 0:00:04]}  Nxh6 {[%clk 0:00:21]} 35. d5 {[%clk 0:00:03]}  Nf5 {[%clk 0:00:21]} 36. Qb6 {[%clk 0:00:03]}  Nfe7 {[%clk 0:00:21]} 37. Qxa6 {[%clk 0:00:01]}  Kf7 {[%clk 0:00:20]} 0-1


[Site "https://www.chess.com"]

[Event "Titled Tuesday Blitz October 25 Late 2022"]
[White "Machidon, Cristi"]
[Black "Wiegmann, Sascha"]
[WhiteFideId "13904590"]
[BlackFideId "4682041"]
[WhiteElo "2312"]
[BlackElo "2299"]
[Result "1-0"]
[Round "01"]
[TimeControl "180+1"]
[Date "2022.10.26"]
[WhiteClock "0:00:23"]
[BlackClock "0:00:01"]

1. c4 {[%clk 0:02:58]}  Nf6 {[%clk 0:02:59]} 2. Nf3 {[%clk 0:02:58]}  g6 {[%clk 0:02:59]} 3. g3 {[%clk 0:02:57]}  Bg7 {[%clk 0:03:00]} 4. Bg2 {[%clk 0:02:58]}  O-O {[%clk 0:03:01]} 5. d4 {[%clk 0:02:57]}  d6 {[%clk 0:03:01]} 6. Nc3 {[%clk 0:02:57]}  Nbd7 {[%clk 0:03:01]} 7. e4 {[%clk 0:02:57]}  c5 {[%clk 0:02:46]} 8. d5 {[%clk 0:02:47]}  b5 {[%clk 0:02:45]} 9. cxb5 {[%clk 0:02:33]}  a6 {[%clk 0:02:44]} 10. b6 {[%clk 0:02:23]}  Qxb6 {[%clk 0:02:34]} 11. O-O {[%clk 0:02:22]}  a5 {[%clk 0:02:34]} 12. Re1 {[%clk 0:02:20]}  Ng4 {[%clk 0:02:33]} 13. Nd2 {[%clk 0:02:03]}  Nxf2 {[%clk 0:00:38]} 14. Kxf2 {[%clk 0:02:02]}  Bd4+ {[%clk 0:00:38]} 15. Re3 {[%clk 0:01:31]}  Ne5 {[%clk 0:00:29]} 16. Nf1 {[%clk 0:01:16]}  Ba6 {[%clk 0:00:16]} 17. Kg1 {[%clk 0:01:03]}  Bxf1 {[%clk 0:00:15]} 18. Bxf1 {[%clk 0:01:02]}  c4 {[%clk 0:00:15]} 19. Qe2 {[%clk 0:00:51]}  Ng4 {[%clk 0:00:15]} 20. Qxg4 {[%clk 0:00:39]}  Bxe3+ {[%clk 0:00:15]} 21. Bxe3 {[%clk 0:00:40]}  Qxe3+ {[%clk 0:00:15]} 22. Kg2 {[%clk 0:00:40]}  Rab8 {[%clk 0:00:13]} 23. Rb1 {[%clk 0:00:37]}  f5 {[%clk 0:00:04]} 24. Qf4 {[%clk 0:00:32]}  Qxf4 {[%clk 0:00:04]} 25. gxf4 {[%clk 0:00:33]}  fxe4 {[%clk 0:00:05]} 26. Kg3 {[%clk 0:00:31]}  Rb4 {[%clk 0:00:04]} 27. a3 {[%clk 0:00:31]}  Rb6 {[%clk 0:00:02]} 28. Bxc4 {[%clk 0:00:29]}  Rc8 {[%clk 0:00:03]} 29. b3 {[%clk 0:00:28]}  a4 {[%clk 0:00:03]} 30. Nxa4 {[%clk 0:00:25]}  Rbb8 {[%clk 0:00:03]} 31. Nc3 {[%clk 0:00:24]}  e3 {[%clk 0:00:02]} 32. Re1 {[%clk 0:00:24]}  Ra8 {[%clk 0:00:01]} 33. a4 {[%clk 0:00:23]} 1-0


[Site "https://www.chess.com"]

[Event "Titled Tuesday Blitz October 25 Late 2022"]
[White "Madaminov, Mukhiddin"]
[Black "Yurtseven, Melih"]
[WhiteFideId "14210703"]
[BlackFideId "6312160"]
[WhiteElo "2341"]
[BlackElo "2218"]
[Result "1-0"]
[Round "01"]
[TimeControl "180+1"]
[Date "2022.10.26"]
[WhiteClock "0:00:39"]
[BlackClock "0:00:03"]

1. d4 {[%clk 0:03:00]}  Nf6 {[%clk 0:02:52]} 2. Nc3 {[%clk 0:03:01]}  d5 {[%clk 0:02:26]} 3. Bf4 {[%clk 0:02:58]}  a6 {[%clk 0:02:23]} 4. e3 {[%clk 0:02:58]}  e6 {[%clk 0:02:21]} 5. g4 {[%clk 0:02:58]}  Bd6 {[%clk 0:02:19]} 6. g5 {[%clk 0:02:57]}  Nfd7 {[%clk 0:02:16]} 7. Nf3 {[%clk 0:02:57]}  Qe7 {[%clk 0:02:12]} 8. Bg2 {[%clk 0:02:51]}  c5 {[%clk 0:02:11]} 9. O-O {[%clk 0:02:44]}  O-O {[%clk 0:02:10]} 10. Re1 {[%clk 0:02:40]}  Nc6 {[%clk 0:02:06]} 11. Ne2 {[%clk 0:02:37]}  b5 {[%clk 0:02:01]} 12. Ng3 {[%clk 0:02:35]}  Bb7 {[%clk 0:02:00]} 13. h4 {[%clk 0:02:31]}  f6 {[%clk 0:01:28]} 14. gxf6 {[%clk 0:02:11]}  Nxf6 {[%clk 0:01:25]} 15. c3 {[%clk 0:02:05]}  Ng4 {[%clk 0:01:19]} 16. Ng5 {[%clk 0:01:56]}  Nh6 {[%clk 0:01:15]} 17. Bxd6 {[%clk 0:01:51]}  Qxd6 {[%clk 0:01:15]} 18. f4 {[%clk 0:01:52]}  Rae8 {[%clk 0:01:12]} 19. Bh3 {[%clk 0:01:41]}  Kh8 {[%clk 0:01:10]} 20. Rc1 {[%clk 0:01:41]}  Na5 {[%clk 0:01:05]} 21. dxc5 {[%clk 0:01:27]}  Qxc5 {[%clk 0:01:06]} 22. b4 {[%clk 0:01:27]}  Qa7 {[%clk 0:00:59]} 23. Qd4 {[%clk 0:01:24]}  Qxd4 {[%clk 0:00:48]} 24. cxd4 {[%clk 0:01:25]}  Nc4 {[%clk 0:00:46]} 25. Bxe6 {[%clk 0:01:25]}  Rf6 {[%clk 0:00:39]} 26. Bh3 {[%clk 0:01:19]}  Bc8 {[%clk 0:00:13]} 27. Bxc8 {[%clk 0:01:12]}  Rxc8 {[%clk 0:00:14]} 28. Nf3 {[%clk 0:01:09]}  Ng4 {[%clk 0:00:14]} 29. Ne5 {[%clk 0:01:08]}  Ngxe3 {[%clk 0:00:13]} 30. Rxe3 {[%clk 0:01:08]}  Rxf4 {[%clk 0:00:10]} 31. Nxc4 {[%clk 0:01:06]}  dxc4 {[%clk 0:00:11]} 32. Rce1 {[%clk 0:01:05]}  h6 {[%clk 0:00:10]} 33. Re4 {[%clk 0:00:56]}  Rcf8 {[%clk 0:00:10]} 34. d5 {[%clk 0:00:55]}  Rf3 {[%clk 0:00:10]} 35. R1e3 {[%clk 0:00:53]}  R3f6 {[%clk 0:00:07]} 36. Rd4 {[%clk 0:00:52]}  Rd6 {[%clk 0:00:06]} 37. h5 {[%clk 0:00:50]}  Kh7 {[%clk 0:00:06]} 38. Ne4 {[%clk 0:00:50]}  Rd7 {[%clk 0:00:05]} 39. d6 {[%clk 0:00:49]}  Rfd8 {[%clk 0:00:04]} 40. Rg3 {[%clk 0:00:45]}  Ra7 {[%clk 0:00:03]} 41. Nc5 {[%clk 0:00:44]}  a5 {[%clk 0:00:03]} 42. bxa5 {[%clk 0:00:40]}  Rxa5 {[%clk 0:00:04]} 43. Ne6 {[%clk 0:00:39]}  Rd7 {[%clk 0:00:03]} 44. Nf8+ {[%clk 0:00:39]} 1-0


[Site "https://www.chess.com"]

[Event "Titled Tuesday Blitz October 25 Late 2022"]
[White "Makaraci, Tunahan"]
[Black "Yoo, Christopher Woojin"]
[WhiteFideId "6356559"]
[BlackFideId "30909694"]
[WhiteElo "2175"]
[BlackElo "2463"]
[Result "0-1"]
[Round "01"]
[TimeControl "180+1"]
[Date "2022.10.26"]
[WhiteClock "0:00:03"]
[BlackClock "0:00:14"]

1. e4 {[%clk 0:03:00]}  c6 {[%clk 0:02:58]} 2. d4 {[%clk 0:03:00]}  d5 {[%clk 0:02:59]} 3. exd5 {[%clk 0:03:01]}  cxd5 {[%clk 0:02:59]} 4. c4 {[%clk 0:03:01]}  Nf6 {[%clk 0:02:59]} 5. Nc3 {[%clk 0:03:02]}  e6 {[%clk 0:02:58]} 6. Nf3 {[%clk 0:03:02]}  Nc6 {[%clk 0:02:57]} 7. Bg5 {[%clk 0:02:59]}  Be7 {[%clk 0:02:57]} 8. c5 {[%clk 0:02:59]}  O-O {[%clk 0:02:57]} 9. Bb5 {[%clk 0:02:59]}  Ne4 {[%clk 0:02:41]} 10. Bxe7 {[%clk 0:02:59]}  Nxe7 {[%clk 0:02:41]} 11. Rc1 {[%clk 0:02:59]}  f6 {[%clk 0:02:33]} 12. O-O {[%clk 0:02:56]}  Ng6 {[%clk 0:02:32]} 13. Bd3 {[%clk 0:02:40]}  f5 {[%clk 0:02:26]} 14. b4 {[%clk 0:02:35]}  Qf6 {[%clk 0:02:20]} 15. Re1 {[%clk 0:02:22]}  Bd7 {[%clk 0:02:08]} 16. Bf1 {[%clk 0:02:04]}  Rab8 {[%clk 0:02:04]} 17. a4 {[%clk 0:01:56]}  b6 {[%clk 0:01:55]} 18. Bb5 {[%clk 0:01:44]}  Bxb5 {[%clk 0:01:48]} 19. Nxb5 {[%clk 0:01:40]}  bxc5 {[%clk 0:01:35]} 20. bxc5 {[%clk 0:01:36]}  Nf4 {[%clk 0:01:21]} 21. Nd6 {[%clk 0:00:56]}  Rb2 {[%clk 0:01:09]} 22. Rc2 {[%clk 0:00:53]}  Rfb8 {[%clk 0:00:54]} 23. Nxe4 {[%clk 0:00:49]}  fxe4 {[%clk 0:00:52]} 24. Ne5 {[%clk 0:00:49]}  Qf5 {[%clk 0:00:16]} 25. c6 {[%clk 0:00:22]}  e3 {[%clk 0:00:14]} 26. Rxb2 {[%clk 0:00:12]}  Rxb2 {[%clk 0:00:13]} 27. Rxe3 {[%clk 0:00:04]}  Nh3+ {[%clk 0:00:14]} 28. gxh3 {[%clk 0:00:02]}  Qxf2+ {[%clk 0:00:14]} 29. Kh1 {[%clk 0:00:03]}  Qxh2# {[%clk 0:00:14]} 0-1


[Site "https://www.chess.com"]

[Event "Titled Tuesday Blitz October 25 Late 2022"]
[White "Makarian, Rudik"]
[Black "Rangel, Daniel"]
[WhiteFideId "44105681"]
[BlackFideId "2124475"]
[WhiteElo "2405"]
[BlackElo "2225"]
[Result "1-0"]
[Round "01"]
[TimeControl "180+1"]
[Date "2022.10.26"]
[WhiteClock "0:02:04"]
[BlackClock "0:01:31"]

1. Nf3 {[%clk 0:03:00]}  Nf6 {[%clk 0:02:59]} 2. g3 {[%clk 0:03:01]}  b6 {[%clk 0:02:52]} 3. Bg2 {[%clk 0:03:02]}  Bb7 {[%clk 0:02:52]} 4. c4 {[%clk 0:03:03]}  e6 {[%clk 0:02:49]} 5. O-O {[%clk 0:03:02]}  d5 {[%clk 0:02:47]} 6. cxd5 {[%clk 0:03:02]}  Nxd5 {[%clk 0:02:45]} 7. d4 {[%clk 0:03:01]}  Be7 {[%clk 0:02:25]} 8. Re1 {[%clk 0:03:02]}  O-O {[%clk 0:02:24]} 9. e4 {[%clk 0:03:01]}  Nf6 {[%clk 0:02:24]} 10. Nc3 {[%clk 0:03:02]}  Nbd7 {[%clk 0:02:22]} 11. Bf4 {[%clk 0:02:59]}  c5 {[%clk 0:02:20]} 12. d5 {[%clk 0:03:00]}  exd5 {[%clk 0:02:17]} 13. exd5 {[%clk 0:03:00]}  Re8 {[%clk 0:02:15]} 14. Qd3 {[%clk 0:02:48]}  Bf8 {[%clk 0:02:15]} 15. Rxe8 {[%clk 0:02:48]}  Nxe8 {[%clk 0:02:14]} 16. Re1 {[%clk 0:02:48]}  Nd6 {[%clk 0:02:13]} 17. h4 {[%clk 0:02:48]}  c4 {[%clk 0:02:08]} 18. Qd4 {[%clk 0:02:40]}  Nc5 {[%clk 0:02:06]} 19. Bxd6 {[%clk 0:02:40]}  Bxd6 {[%clk 0:02:05]} 20. Qxc4 {[%clk 0:02:40]}  Ba6 {[%clk 0:02:02]} 21. Qg4 {[%clk 0:02:30]}  Nd3 {[%clk 0:01:57]} 22. Rb1 {[%clk 0:02:23]}  Rc8 {[%clk 0:01:54]} 23. Nd4 {[%clk 0:02:23]}  Be5 {[%clk 0:01:49]} 24. Nc6 {[%clk 0:02:21]}  Qd6 {[%clk 0:01:46]} 25. Bf1 {[%clk 0:02:06]}  Qf6 {[%clk 0:01:31]} 26. Bxd3 {[%clk 0:02:04]} 1-0


[Site "https://www.chess.com"]

[Event "Titled Tuesday Blitz October 25 Late 2022"]
[White "Manukian, Artak"]
[Black "Kollars, Dmitrij"]
[WhiteFideId "13301373"]
[BlackFideId "12909572"]
[WhiteElo "2488"]
[BlackElo "2584"]
[Result "0-1"]
[Round "01"]
[TimeControl "180+1"]
[Date "2022.10.26"]
[WhiteClock "0:01:39"]
[BlackClock "0:01:09"]

1. e4 {[%clk 0:02:58]}  e5 {[%clk 0:02:59]} 2. Nf3 {[%clk 0:02:58]}  Nc6 {[%clk 0:02:59]} 3. d4 {[%clk 0:02:58]}  exd4 {[%clk 0:02:58]} 4. Nxd4 {[%clk 0:02:59]}  Nf6 {[%clk 0:02:53]} 5. Nxc6 {[%clk 0:03:00]}  bxc6 {[%clk 0:02:54]} 6. e5 {[%clk 0:03:00]}  Qe7 {[%clk 0:02:50]} 7. Qe2 {[%clk 0:03:00]}  Nd5 {[%clk 0:02:51]} 8. c4 {[%clk 0:03:01]}  Ba6 {[%clk 0:02:47]} 9. b3 {[%clk 0:03:02]}  g6 {[%clk 0:02:17]} 10. g3 {[%clk 0:02:59]}  Bg7 {[%clk 0:02:16]} 11. Bb2 {[%clk 0:02:59]}  O-O-O {[%clk 0:02:16]} 12. Bg2 {[%clk 0:02:59]}  Rhe8 {[%clk 0:02:16]} 13. O-O {[%clk 0:02:59]}  Bxe5 {[%clk 0:02:16]} 14. Qxe5 {[%clk 0:03:00]}  Qxe5 {[%clk 0:02:15]} 15. Bxe5 {[%clk 0:03:00]}  Rxe5 {[%clk 0:02:15]} 16. cxd5 {[%clk 0:03:01]}  Bxf1 {[%clk 0:02:15]} 17. Kxf1 {[%clk 0:03:02]}  cxd5 {[%clk 0:02:15]} 18. Nc3 {[%clk 0:03:01]}  c6 {[%clk 0:02:15]} 19. Rc1 {[%clk 0:03:00]}  Kb7 {[%clk 0:02:00]} 20. h4 {[%clk 0:02:57]}  Rde8 {[%clk 0:01:55]} 21. Bf3 {[%clk 0:02:57]}  h6 {[%clk 0:01:52]} 22. Na4 {[%clk 0:02:56]}  Kc7 {[%clk 0:01:51]} 23. Nc5 {[%clk 0:02:55]}  g5 {[%clk 0:01:46]} 24. hxg5 {[%clk 0:02:46]}  hxg5 {[%clk 0:01:47]} 25. b4 {[%clk 0:02:44]}  Kd6 {[%clk 0:01:42]} 26. Nd3 {[%clk 0:02:44]}  R5e7 {[%clk 0:01:41]} 27. a4 {[%clk 0:02:35]}  f5 {[%clk 0:01:41]} 28. Kg2 {[%clk 0:02:29]}  Rh8 {[%clk 0:01:37]} 29. g4 {[%clk 0:02:23]}  fxg4 {[%clk 0:01:36]} 30. Bxg4 {[%clk 0:02:23]}  Re4 {[%clk 0:01:35]} 31. Bf3 {[%clk 0:02:23]}  Rc4 {[%clk 0:01:34]} 32. Rb1 {[%clk 0:02:18]}  Rb8 {[%clk 0:01:23]} 33. Be2 {[%clk 0:02:10]}  a5 {[%clk 0:01:20]} 34. b5 {[%clk 0:02:04]}  Rxa4 {[%clk 0:01:17]} 35. b6 {[%clk 0:01:56]}  Re4 {[%clk 0:01:17]} 36. Bf3 {[%clk 0:01:51]}  Rd4 {[%clk 0:01:17]} 37. Be2 {[%clk 0:01:51]}  a4 {[%clk 0:01:15]} 38. Kf3 {[%clk 0:01:47]}  a3 {[%clk 0:01:15]} 39. Ke3 {[%clk 0:01:45]}  a2 {[%clk 0:01:11]} 40. Ra1 {[%clk 0:01:45]}  Ra4 {[%clk 0:01:11]} 41. Nc1 {[%clk 0:01:40]}  Ra3+ {[%clk 0:01:08]} 42. Kd2 {[%clk 0:01:39]}  Rxb6 {[%clk 0:01:09]} 0-1


[Site "https://www.chess.com"]

[Event "Titled Tuesday Blitz October 25 Late 2022"]
[White "Mazurkiewicz, Michal"]
[Black "Ozen, Bahadir"]
[WhiteFideId "1124943"]
[BlackFideId "6337058"]
[WhiteElo "2063"]
[BlackElo "2503"]
[Result "0-1"]
[Round "01"]
[TimeControl "180+1"]
[Date "2022.10.26"]
[WhiteClock "0:00:04"]
[BlackClock "0:00:51"]

1. e4 {[%clk 0:02:55]}  g6 {[%clk 0:03:00]} 2. g3 {[%clk 0:02:55]}  Bg7 {[%clk 0:02:59]} 3. Bg2 {[%clk 0:02:55]}  d6 {[%clk 0:03:00]} 4. Nf3 {[%clk 0:02:55]}  Nf6 {[%clk 0:02:59]} 5. d3 {[%clk 0:02:55]}  O-O {[%clk 0:02:59]} 6. O-O {[%clk 0:02:55]}  e5 {[%clk 0:02:57]} 7. c3 {[%clk 0:02:54]}  Nbd7 {[%clk 0:02:56]} 8. b4 {[%clk 0:02:55]}  c6 {[%clk 0:02:54]} 9. Nbd2 {[%clk 0:02:53]}  Qc7 {[%clk 0:02:52]} 10. a3 {[%clk 0:02:50]}  b6 {[%clk 0:02:47]} 11. Bb2 {[%clk 0:02:50]}  Bb7 {[%clk 0:02:47]} 12. Re1 {[%clk 0:02:50]}  Rad8 {[%clk 0:02:47]} 13. Qc2 {[%clk 0:02:49]}  Rfe8 {[%clk 0:02:46]} 14. d4 {[%clk 0:02:47]}  a6 {[%clk 0:02:40]} 15. Nc4 {[%clk 0:02:22]}  b5 {[%clk 0:02:17]} 16. Na5 {[%clk 0:02:22]}  c5 {[%clk 0:02:17]} 17. Nxb7 {[%clk 0:02:22]}  Qxb7 {[%clk 0:02:18]} 18. bxc5 {[%clk 0:02:00]}  dxc5 {[%clk 0:02:17]} 19. d5 {[%clk 0:02:00]}  c4 {[%clk 0:02:17]} 20. a4 {[%clk 0:01:58]}  Nc5 {[%clk 0:02:17]} 21. axb5 {[%clk 0:01:58]}  axb5 {[%clk 0:02:18]} 22. Ba3 {[%clk 0:01:55]}  Nb3 {[%clk 0:02:13]} 23. Rad1 {[%clk 0:01:49]}  Nd7 {[%clk 0:02:08]} 24. Nd2 {[%clk 0:01:37]}  Nbc5 {[%clk 0:02:03]} 25. Bf1 {[%clk 0:01:24]}  Ra8 {[%clk 0:02:00]} 26. Bb4 {[%clk 0:01:22]}  Qc7 {[%clk 0:01:50]} 27. Ra1 {[%clk 0:01:20]}  h5 {[%clk 0:01:49]} 28. Reb1 {[%clk 0:01:15]}  Bh6 {[%clk 0:01:43]} 29. Nf3 {[%clk 0:00:41]}  Nb3 {[%clk 0:01:37]} 30. Rxa8 {[%clk 0:00:40]}  Rxa8 {[%clk 0:01:37]} 31. h4 {[%clk 0:00:40]}  Ndc5 {[%clk 0:01:37]} 32. Ng5 {[%clk 0:00:22]}  Bxg5 {[%clk 0:01:21]} 33. hxg5 {[%clk 0:00:21]}  Qe7 {[%clk 0:01:22]} 34. Qe2 {[%clk 0:00:15]}  Kg7 {[%clk 0:01:14]} 35. Qe3 {[%clk 0:00:15]}  Rc8 {[%clk 0:01:10]} 36. f4 {[%clk 0:00:13]}  exf4 {[%clk 0:01:08]} 37. gxf4 {[%clk 0:00:14]}  Qxe4 {[%clk 0:01:02]} 38. Bxc5 {[%clk 0:00:13]}  Qxb1 {[%clk 0:01:01]} 39. Bd4+ {[%clk 0:00:11]}  Nxd4 {[%clk 0:01:01]} 40. Qxd4+ {[%clk 0:00:11]}  Kg8 {[%clk 0:01:01]} 41. d6 {[%clk 0:00:11]}  Qf5 {[%clk 0:00:58]} 42. Kh2 {[%clk 0:00:10]}  Rd8 {[%clk 0:00:51]} 43. Bh3 {[%clk 0:00:10]}  Qc2+ {[%clk 0:00:51]} 44. Bg2 {[%clk 0:00:05]}  Qd3 {[%clk 0:00:50]} 45. Qb6 {[%clk 0:00:03]}  Qxd6 {[%clk 0:00:49]} 46. Qxb5 {[%clk 0:00:03]}  Qxf4+ {[%clk 0:00:50]} 47. Kg1 {[%clk 0:00:04]}  Rd1+ {[%clk 0:00:50]} 48. Bf1 {[%clk 0:00:03]}  Rxf1+ {[%clk 0:00:50]} 49. Kg2 {[%clk 0:00:03]}  Qf3+ {[%clk 0:00:51]} 50. Kh2 {[%clk 0:00:04]}  Rh1# {[%clk 0:00:51]} 0-1


[Site "https://www.chess.com"]

[Event "Titled Tuesday Blitz October 25 Late 2022"]
[White "Melikyan, Gnel"]
[Black "Sibilio, Mario"]
[WhiteFideId "54109990"]
[BlackFideId "800422"]
[WhiteElo "2138"]
[BlackElo "2296"]
[Result "0-1"]
[Round "01"]
[TimeControl "180+1"]
[Date "2022.10.26"]
[WhiteClock "0:01:27"]
[BlackClock "0:00:41"]

1. d4 {[%clk 0:02:57]}  d6 {[%clk 0:02:55]} 2. c4 {[%clk 0:02:58]}  e5 {[%clk 0:02:54]} 3. dxe5 {[%clk 0:02:56]}  dxe5 {[%clk 0:02:53]} 4. Qxd8+ {[%clk 0:02:57]}  Kxd8 {[%clk 0:02:53]} 5. Nc3 {[%clk 0:02:57]}  Be6 {[%clk 0:02:52]} 6. b3 {[%clk 0:02:52]}  c6 {[%clk 0:02:43]} 7. Nf3 {[%clk 0:02:51]}  f6 {[%clk 0:02:42]} 8. Bb2 {[%clk 0:02:49]}  Nd7 {[%clk 0:02:39]} 9. e3 {[%clk 0:02:46]}  Nh6 {[%clk 0:02:28]} 10. O-O-O {[%clk 0:02:42]}  Kc7 {[%clk 0:02:27]} 11. h3 {[%clk 0:02:39]}  a5 {[%clk 0:02:21]} 12. Bd3 {[%clk 0:02:36]}  Nc5 {[%clk 0:02:18]} 13. Bc2 {[%clk 0:02:36]}  Nf7 {[%clk 0:02:15]} 14. Nd2 {[%clk 0:02:27]}  Be7 {[%clk 0:02:13]} 15. Nde4 {[%clk 0:02:26]}  Nxe4 {[%clk 0:02:03]} 16. Nxe4 {[%clk 0:02:26]}  Rhd8 {[%clk 0:01:59]} 17. Rxd8 {[%clk 0:02:24]}  Rxd8 {[%clk 0:01:58]} 18. Bc3 {[%clk 0:02:24]}  f5 {[%clk 0:01:38]} 19. Ng3 {[%clk 0:02:17]}  Ba3+ {[%clk 0:01:30]} 20. Kb1 {[%clk 0:02:16]}  Bb4 {[%clk 0:01:29]} 21. Bxb4 {[%clk 0:02:11]}  axb4 {[%clk 0:01:28]} 22. Bxf5 {[%clk 0:02:11]}  Bxf5+ {[%clk 0:01:24]} 23. Nxf5 {[%clk 0:02:11]}  Rd2 {[%clk 0:01:24]} 24. Rf1 {[%clk 0:02:04]}  g6 {[%clk 0:01:23]} 25. Ng3 {[%clk 0:02:02]}  Nd6 {[%clk 0:01:22]} 26. h4 {[%clk 0:01:57]}  h5 {[%clk 0:01:18]} 27. e4 {[%clk 0:01:40]}  c5 {[%clk 0:01:11]} 28. f4 {[%clk 0:01:38]}  Rxg2 {[%clk 0:01:02]} 29. fxe5 {[%clk 0:01:33]}  Rxg3 {[%clk 0:01:02]} 30. exd6+ {[%clk 0:01:33]}  Kxd6 {[%clk 0:01:01]} 31. Rf7 {[%clk 0:01:32]}  Ke5 {[%clk 0:00:56]} 32. Re7+ {[%clk 0:01:30]}  Kd4 {[%clk 0:00:56]} 33. e5 {[%clk 0:01:30]}  Kc3 {[%clk 0:00:53]} 34. a4 {[%clk 0:01:30]}  Kxb3 {[%clk 0:00:52]} 35. Kc1 {[%clk 0:01:29]}  Kc3 {[%clk 0:00:51]} 36. Kd1 {[%clk 0:01:28]}  b3 {[%clk 0:00:47]} 37. Rxb7 {[%clk 0:01:28]}  b2 {[%clk 0:00:47]} 38. e6 {[%clk 0:01:26]}  b1=Q+ {[%clk 0:00:44]} 39. Rxb1 {[%clk 0:01:25]}  Rg1+ {[%clk 0:00:44]} 40. Ke2 {[%clk 0:01:26]}  Rxb1 {[%clk 0:00:43]} 41. Ke3 {[%clk 0:01:27]}  Kxc4 {[%clk 0:00:42]} 42. a5 {[%clk 0:01:27]}  Re1+ {[%clk 0:00:41]} 0-1


[Site "https://www.chess.com"]